{"text_format":"3","workbook":"xlsx","n_sheets":3,"sheets":["Supplementary Table 7","Sheet2","Sheet3"],"not_rendered":{"external_links":1},"read":"whole","date_system":"1900"}

{"sheet":"Supplementary Table 7","index":0,"n_rows":13,"n_cols":6,"rows_kept":13,"merged":[[0,0,0,5]]}
["Supplementary Table 7. The up-regulated miRNAs in ovarian cancer tissues with at least two predicted binding sites. "]
["miRNA","circRNA","binding site (miRanda)","binding site (PITA)","miR_log2(Ratio)","up-down"]
["hsa-miR-23a-3p","hsa_circ_0007444",2,3,{"$f":"VLOOKUP(A3,'[1]Supplementary Table 3'!A:C,2,FALSE)","v":152},{"$f":"VLOOKUP(A3,'[1]Supplementary Table 3'!A:C,3,FALSE)","v":-12.17}]
["hsa-miR-107","hsa_circ_0007444",2,2,{"$f":"VLOOKUP(A4,'[1]Supplementary Table 3'!A:C,2,FALSE)","v":158},{"$f":"VLOOKUP(A4,'[1]Supplementary Table 3'!A:C,3,FALSE)","v":-21.26}]
["hsa-miR-103a-3p","hsa_circ_0007444",2,2,{"$f":"VLOOKUP(A5,'[1]Supplementary Table 3'!A:C,2,FALSE)","v":158},{"$f":"VLOOKUP(A5,'[1]Supplementary Table 3'!A:C,3,FALSE)","v":-21.26}]
["hsa-miR-550a-5p","hsa_circ_0007444",2,2,{"$f":"VLOOKUP(A6,'[1]Supplementary Table 3'!A:C,2,FALSE)","v":135},{"$f":"VLOOKUP(A6,'[1]Supplementary Table 3'!A:C,3,FALSE)","v":-19.3}]
["hsa-miR-29b-3p","hsa_circ_0007444",2,3,{"$f":"VLOOKUP(A7,'[1]Supplementary Table 3'!A:C,2,FALSE)","v":129},{"$f":"VLOOKUP(A7,'[1]Supplementary Table 3'!A:C,3,FALSE)","v":-22.05}]
["hsa-miR-103a-2-5p","hsa_circ_0007444",2,2,{"$f":"VLOOKUP(A8,'[1]Supplementary Table 3'!A:C,2,FALSE)","v":143},{"$f":"VLOOKUP(A8,'[1]Supplementary Table 3'!A:C,3,FALSE)","v":-15.78}]
["hsa-miR-3074-5p","hsa_circ_0007444",2,2,{"$f":"VLOOKUP(A9,'[1]Supplementary Table 3'!A:C,2,FALSE)","v":135},{"$f":"VLOOKUP(A9,'[1]Supplementary Table 3'!A:C,3,FALSE)","v":-17.64}]
["hsa-miR-15b-5p","hsa_circ_0007444",2,4,{"$f":"VLOOKUP(A10,'[1]Supplementary Table 3'!A:C,2,FALSE)","v":163},{"$f":"VLOOKUP(A10,'[1]Supplementary Table 3'!A:C,3,FALSE)","v":-25.93}]
["hsa-miR-1254","hsa_circ_0007444",3,3,{"$f":"VLOOKUP(A11,'[1]Supplementary Table 3'!A:C,2,FALSE)","v":138},{"$f":"VLOOKUP(A11,'[1]Supplementary Table 3'!A:C,3,FALSE)","v":-19.4}]
["hsa-miR-1270","hsa_circ_0007444",2,2,{"$f":"VLOOKUP(A12,'[1]Supplementary Table 3'!A:C,2,FALSE)","v":141},{"$f":"VLOOKUP(A12,'[1]Supplementary Table 3'!A:C,3,FALSE)","v":-19.11}]
["hsa-miR-873-5p","hsa_circ_0007444",2,2,{"$f":"VLOOKUP(A13,'[1]Supplementary Table 3'!A:C,2,FALSE)","v":131},{"$f":"VLOOKUP(A13,'[1]Supplementary Table 3'!A:C,3,FALSE)","v":-12.51}]

{"sheet":"Sheet2","index":1,"n_rows":0,"n_cols":0,"rows_kept":0}

{"sheet":"Sheet3","index":2,"n_rows":0,"n_cols":0,"rows_kept":0}